fUSD/lending_fUSD_20240407
["ID","MTS","AMOUNT","RATE_DAILY","PERIOD"]
[321746584,1712495440269,-6271.55468196,0.00020531,2]
[321746585,1712495440278,-155.0,0.00020539,2]
[321746586,1712495440288,-254.876963,0.00020548,2]
[321746587,1712495440298,-5606.4,0.00020548,2]
[321746588,1712495440307,-152.40398909,0.00020566,2]
[321746589,1712495440317,-281.40660951,0.00020593,2]
[321746590,1712495440328,-24712.5333418,0.00020612,2]
[321746591,1712495440337,-3721.08,0.00020625,2]
[321746592,1712495440346,-499.99,0.00020635,2]
[321746593,1712495440356,-152.40398909,0.0002064,2]
[321746594,1712495440366,-159.36321711,0.00020642,2]
[321746595,1712495440375,-284.24425826,0.00020642,2]
[321746596,1712495440384,-155.27757138,0.00020642,2]
[321746597,1712495440394,-254.65583011,0.00020642,2]
[321746598,1712495440404,-155.60473993,0.00020642,2]
[321746599,1712495440413,-2348.42778418,0.00020642,2]
[321746600,1712495440423,-155.93527969,0.00020642,2]
[321746601,1712495440433,-156.09654372,0.00020642,2]
[321746602,1712495440443,-156.56179884,0.00020642,2]
[321746603,1712495440453,-155.0,0.00020642,2]
[321746604,1712495440463,-92526.98329219,0.00020645,2]
[321746605,1712495440473,-1828.26,0.00020645,2]
[321746606,1712495440484,-9999.99,0.00020645,2]
[321746607,1712495440495,-228.04472199,0.00020645,2]
[321746608,1712495440504,-155.22795944,0.00020693,2]
[321746609,1712495440514,-2817.43912719,0.00020696,2]
[321746610,1712495440524,-152.40398909,0.00020714,2]
[321746611,1712495440533,-6271.55468196,0.00020715,2]
[321746612,1712495440543,-169.63,0.00020739,2]
[321746613,1712495440553,-281.40660951,0.00020747,2]
[321746614,1712495440563,-24712.5333418,0.00020756,2]
[321746615,1712495440573,-155.71370285,0.00020786,2]
[321746616,1712495440583,-152.40398909,0.00020789,2]
[321746617,1712495440593,-91641.2077,0.00020789,2]
[321746618,1712495440602,-155.22795942,0.00020797,2]
[321746619,1712495440612,-2817.43912718,0.00020798,2]
[321746620,1712495440622,-385.11,0.000208,2]
[321746621,1712495440631,-3125.11962685,0.000208,3]
[321746622,1712495440641,-3125.11962682,0.00020825,3]
[321746623,1712495440651,-3125.11962682,0.0002085,3]
[321746624,1712495440660,-152.40398909,0.00020863,2]
[321746625,1712495440670,-3125.11962682,0.00020875,3]
[321746626,1712495440679,-1410.74797787,0.0002089,2]
[321746627,1712495440689,-1302.13006648,0.00020897,2]
[321746628,1712495440698,-1000.0,0.000209,2]
[321746629,1712495440707,-100000.0,0.000209,2]
[321746630,1712495440717,-27143.5692,0.000209,2]
[321746631,1712495440727,-278.8316,0.000209,2]
[321746632,1712495440736,-623.84466695,0.000209,2]
[321746633,1712495440746,-200.0,0.000209,2]
[321746634,1712495440755,-200.0,0.000209,2]
[321746635,1712495440764,-200.0,0.000209,2]
[321746636,1712495440774,-200.0,0.000209,2]
[321746637,1712495440784,-200.0,0.000209,2]
[321746638,1712495440793,-163.0,0.000209,2]
[321746639,1712495440803,-6271.55468196,0.000209,2]
[321746640,1712495440812,-160.0,0.000209,2]
[321746641,1712495440822,-155.22795942,0.000209,2]
[321746642,1712495440832,-24712.5333418,0.000209,2]
[321746643,1712495440842,-281.40660951,0.000209,2]
[321746644,1712495440851,-424.465188,0.000209,2]
[321746645,1712495440860,-3125.11962682,0.000209,3]
[321746646,1712495440871,-2817.43912718,0.000209,2]
[321746647,1712495440880,-173.33033892,0.000209,2]
[321746648,1712495440891,-167.15,0.00020921,2]
[321746649,1712495440902,-152.40398909,0.00020937,2]
[321746650,1712495440911,-259.64365617,0.00020985,2]
[321746651,1712495440921,-244.98397099,0.00020996,2]
[321746652,1712495440931,-221.59943082,0.00020996,2]
[321746653,1712495440940,-184.99361137,0.00020996,2]
[321746654,1712495440951,-157.09483559,0.00020996,2]
[321746655,1712495440960,-228.69841838,0.00020996,2]
[321746656,1712495440969,-304.57157206,0.00020996,2]
[321746657,1712495440979,-570.89706792,0.00020996,2]
[321746658,1712495440989,-177.53843708,0.00020996,2]
[321746659,1712495440999,-261.16504767,0.00020996,2]
[321746660,1712495441010,-155.62348997,0.00020996,2]
[321746661,1712495441019,-203.60014587,0.00020996,2]
[321746662,1712495441029,-262.83183104,0.00020996,2]
[321746663,1712495441040,-244.97936461,0.00020996,2]
[321746664,1712495441050,-174.27613434,0.00020996,2]
[321746665,1712495441060,-187.93435087,0.00020996,2]
[321746666,1712495441069,-210.37739858,0.00020996,2]
[321746667,1712495441079,-163.70329151,0.00020996,2]
[321746668,1712495441089,-273.73705132,0.00020996,2]
[321746669,1712495441099,-155.0,0.00020996,2]
[321746670,1712495441110,-155.65339939,0.00020996,2]
[321746671,1712495441120,-240.02740078,0.00020996,2]
[321746672,1712495441130,-295.12321122,0.00020996,2]
[321746673,1712495441139,-266.12435254,0.00020998,2]
[321746674,1712495441148,-200.61274342,0.00020998,2]
[321746675,1712495441159,-389.47153468,0.00020999,2]
[321746676,1712495441171,-233.68292081,0.00020999,2]
[321746677,1712495441181,-155.78861387,0.00020999,2]
[321746678,1712495441190,-12545095.54695843,0.00021,2]
[321746679,1712495441200,-21932.85447516,0.00021,2]
[321746680,1712495441210,-12670558.0997874,0.00021,2]
[321746681,1712495441220,-150.0,0.00021,2]
[321746682,1712495441230,-152.40398909,0.00021011,2]
[321746683,1712495441241,-152.40398909,0.00021085,2]
[321746684,1712495441251,-1000.0,0.00021114,2]
[321746685,1712495441261,-152.40398909,0.00021159,2]
[321746686,1712495441271,-152.40398909,0.00021233,2]
[321746687,1712495441281,-152.40398909,0.00021307,2]
[321746688,1712495441290,-10000.0,0.00021313,2]
[321746689,1712495441300,-254.876963,0.0002137,2]
[321746690,1712495441309,-152.40398909,0.00021381,2]
[321746691,1712495441319,-514.72,0.00021395,2]
[321746692,1712495441328,-3205.42197349,0.00021414,2]
[321746693,1712495441338,-15894.47734209,0.00021416,2]
[321746694,1712495441347,-943.40701883,0.00021418,2]
[321746695,1712495441357,-405.04804197,0.00021418,2]
[321746696,1712495441366,-517.408884,0.00021419,2]
[321746697,1712495441376,-824.03303982,0.00021421,2]
[321746698,1712495441385,-12670.15281508,0.00021422,2]
[321746699,1712495441395,-943.40701883,0.00021422,2]
[321746700,1712495441405,-290.70747811,0.00021422,2]
[321746701,1712495441415,-3205.42197349,0.00021425,2]
[321746702,1712495441425,-943.40701883,0.00021425,2]
[321746703,1712495441435,-290.70747811,0.00021426,2]
[321746704,1712495441445,-395.93503615,0.00021426,2]
[321746705,1712495441455,-943.40701883,0.00021427,2]
[321746706,1712495441464,-15894.47734209,0.00021427,2]
[321746707,1712495441473,-943.40701883,0.0002143,2]
[321746708,1712495441483,-1415.57903463,0.00021431,2]
[321746709,1712495441493,-405.04804197,0.00021435,2]
[321746710,1712495441502,-12670.15281508,0.00021435,2]
[321746711,1712495441511,-1415.57903463,0.00021436,2]
[321746712,1712495441521,-517.408884,0.00021436,2]
[321746713,1712495441530,-3205.42197349,0.00021437,2]
[321746714,1712495441540,-824.03303982,0.00021437,2]
[321746715,1712495441549,-290.70747811,0.00021437,2]
[321746716,1712495441559,-15894.47734209,0.00021437,2]
[321746717,1712495441568,-142054.78370431,0.00021438,2]
[321746718,1712495441578,-290.70747811,0.00021438,2]
[321746719,1712495441587,-405.04804197,0.00021441,2]
[321746720,1712495441598,-824.03303982,0.00021444,2]
[321746721,1712495441607,-395.93503615,0.00021444,2]
[321746722,1712495441616,-517.408884,0.00021446,2]
[321746723,1712495441626,-3205.42197349,0.00021447,2]
[321746724,1712495441636,-943.40701883,0.00021448,2]
[321746725,1712495441646,-12670.15281508,0.00021449,2]
[321746726,1712495441655,-142054.78370431,0.0002145,2]
[321746727,1712495441804,-290.70747811,0.0002145,2]
[321746728,1712495441815,-12670.15281508,0.00021451,2]
[321746729,1712495441825,-142054.78370431,0.00021452,2]
[321746730,1712495441836,-12670.15281508,0.00021453,2]
[321746731,1712495441846,-142054.78370431,0.00021454,2]
[321746732,1712495441855,-405.04804197,0.00021454,2]
[321746733,1712495441866,-395.93503615,0.00021454,2]
[321746734,1712495441876,-517.408884,0.00021454,2]
[321746735,1712495441886,-152.40398909,0.00021455,2]
[321746736,1712495441896,-3205.42197349,0.00021457,2]
[321746737,1712495441906,-405.04804197,0.00021457,2]
[321746738,1712495441916,-12670.15281508,0.00021457,2]
[321746739,1712495441925,-1415.57903463,0.00021458,2]
[321746740,1712495441936,-943.40701883,0.00021459,2]
[321746741,1712495441945,-405.04804197,0.0002146,2]
[321746742,1712495441955,-12670.15281508,0.00021461,2]
[321746743,1712495441964,-142054.78370431,0.00021461,2]
[321746744,1712495441974,-15894.47734209,0.00021462,2]
[321746745,1712495441984,-824.03303982,0.00021463,2]
[321746746,1712495441993,-142054.78370431,0.00021463,2]
[321746747,1712495442003,-1415.57903463,0.00021464,2]
[321746748,1712495442013,-3205.42197349,0.00021464,2]
[321746749,1712495442022,-517.408884,0.00021464,2]
[321746750,1712495442031,-15894.47734209,0.00021465,2]
[321746751,1712495442042,-15894.47734209,0.00021467,2]
[321746752,1712495442052,-395.93503615,0.00021467,2]
[321746753,1712495442061,-290.70747811,0.00021467,2]
[321746754,1712495442071,-517.408884,0.00021468,2]
[321746755,1712495442081,-824.03303982,0.00021469,2]
[321746756,1712495442091,-824.03303982,0.0002147,2]
[321746757,1712495442101,-824.03303982,0.00021471,2]
[321746758,1712495442110,-824.03303982,0.00021471,2]
[321746759,1712495442120,-1415.57903463,0.00021472,2]
[321746760,1712495442130,-943.40701883,0.00021472,2]
[321746761,1712495442140,-3205.42197349,0.00021474,2]
[321746762,1712495442149,-517.408884,0.00021474,2]
[321746763,1712495442163,-290.70747811,0.00021474,2]
[321746764,1712495442173,-290.70747811,0.00021474,2]
[321746765,1712495442183,-142054.78370431,0.00021475,2]
[321746766,1712495442192,-1415.57903463,0.00021477,2]
[321746767,1712495442202,-12670.15281508,0.00021479,2]
[321746768,1712495442212,-1415.57903463,0.0002148,2]
[321746769,1712495442222,-1415.57903463,0.0002148,2]
[321746770,1712495442232,-395.93503615,0.0002148,2]
[321746771,1712495442241,-517.408884,0.00021481,2]
[321746772,1712495442252,-1415.57903463,0.00021484,2]
[321746773,1712495442262,-12670.15281508,0.00021484,2]
[321746774,1712495442272,-290.70747811,0.00021484,2]
[321746775,1712495442282,-15894.47734209,0.00021485,2]
[321746776,1712495442291,-142054.78370431,0.00021485,2]
[321746777,1712495442300,-405.04804197,0.00021485,2]
[321746778,1712495442310,-395.93503615,0.00021485,2]
[321746779,1712495442319,-517.408884,0.00021486,2]
[321746780,1712495442328,-405.04804197,0.00021487,2]
[321746781,1712495442337,-15894.47734209,0.00021488,2]
[321746782,1712495442347,-142054.78370431,0.00021489,2]
[321746783,1712495442356,-405.04804197,0.00021489,2]
[321746784,1712495442366,-395.93503615,0.0002149,2]
[321746785,1712495442377,-15894.47734209,0.00021492,2]
[321746786,1712495442386,-395.93503615,0.00021494,2]
[321746787,1712495442396,-943.40701883,0.00021494,2]
[321746788,1712495442405,-824.03303982,0.00021494,2]
[321746789,1712495442415,-395.93503615,0.00021496,2]
[321746790,1712495442424,-3205.42197349,0.00021497,2]
[321746791,1712495442433,-3205.42197349,0.00021498,2]
[321746792,1712495442442,-150.0,0.000215,2]
[321746793,1712495442452,-7708.02,0.00021525,2]
[321746794,1712495442461,-152.40398909,0.0002153,2]
[321746795,1712495442470,-385.11,0.00021535,2]
[321746796,1712495442479,-855.0,0.00021575,2]
[321746797,1712495442489,-547.0,0.00021575,2]
[321746798,1712495442498,-525.0,0.00021575,2]
[321746799,1712495442508,-152.40398909,0.00021604,2]
[321746800,1712495442518,-500.0,0.00021645,2]
[321746801,1712495442527,-210.0,0.00021669,2]
[321746802,1712495442536,-210.0,0.00021669,2]
[321746803,1712495442546,-152.40398909,0.00021678,2]
[321746804,1712495442555,-300.0,0.00021714,2]
[321746805,1712495442564,-167.15,0.00021719,2]
[321746806,1712495442574,-152.40398909,0.00021752,2]
[321746807,1712495442583,-2361.55,0.000218,2]
[321746808,1712495442592,-1840.06,0.000218,2]
[321746809,1712495442602,-152.40398909,0.00021826,2]
[321746810,1712495442611,-150.0,0.000219,2]
[321746811,1712495442620,-1404.80102661,0.000219,2]
[321746812,1712495442630,-1404.80102661,0.000219,2]
[321746813,1712495442639,-1404.80102661,0.000219,2]
[321746814,1712495442648,-1404.80102661,0.000219,2]
[321746815,1712495442658,-1404.80102661,0.000219,2]
[321746816,1712495442668,-1404.80102661,0.000219,2]
[321746817,1712495442677,-1404.80102661,0.000219,2]
[321746818,1712495442687,-1404.80102661,0.000219,2]
[321746819,1712495442695,-1404.80102661,0.000219,2]
[321746820,1712495442705,-1404.80102661,0.000219,2]
[321746821,1712495442714,-1404.80102661,0.000219,2]
[321746822,1712495442724,-1404.80102661,0.000219,2]
[321746823,1712495442733,-1404.80102661,0.000219,2]
[321746824,1712495442742,-1404.80102661,0.000219,2]
[321746825,1712495442751,-1404.80102661,0.000219,2]
[321746826,1712495442760,-1404.80102661,0.000219,2]
[321746827,1712495442769,-1404.80102661,0.000219,2]
[321746828,1712495442778,-1404.80102661,0.000219,2]
[321746829,1712495442787,-1404.80102661,0.000219,2]
[321746830,1712495442797,-1404.80102661,0.000219,2]
[321746831,1712495442806,-1404.80102661,0.000219,2]
[321746832,1712495442815,-1404.80102661,0.000219,2]
[321746833,1712495442824,-1404.80102661,0.000219,2]
[321746834,1712495442833,-1404.80102661,0.000219,2]
[321746835,1712495442842,-1404.80102661,0.000219,2]
[321746836,1712495442851,-1404.80102661,0.000219,2]
[321746837,1712495442861,-1404.80102661,0.000219,2]
[321746838,1712495442870,-1404.80102661,0.000219,2]
[321746839,1712495442879,-1404.80102661,0.000219,2]
[321746840,1712495442888,-1404.80102661,0.000219,2]
[321746841,1712495442897,-207.88455727,0.000219,2]
[321746842,1712495442907,-197.38903611,0.000219,2]
[321746843,1712495442916,-197.38903611,0.000219,2]
[321746844,1712495442925,-197.38903611,0.000219,2]
[321746845,1712495442934,-197.38903611,0.000219,2]
[321746846,1712495442943,-197.38903611,0.000219,2]
[321746847,1712495442953,-197.38903611,0.000219,2]
[321746848,1712495442962,-197.38903611,0.000219,2]
[321746849,1712495442972,-197.38903611,0.000219,2]
[321746850,1712495442981,-197.38903611,0.000219,2]
[321746851,1712495442990,-197.38903611,0.000219,2]
[321746852,1712495443001,-197.38903611,0.000219,2]
[321746853,1712495443010,-197.38903611,0.000219,2]
[321746854,1712495443020,-197.38903611,0.000219,2]
[321746855,1712495443031,-197.38903611,0.000219,2]
[321746856,1712495443041,-197.38903611,0.000219,2]
[321746857,1712495443052,-197.38903611,0.000219,2]
[321746858,1712495443062,-197.38903611,0.000219,2]
[321746859,1712495443071,-197.38903611,0.000219,2]
[321746860,1712495443081,-197.38903611,0.000219,2]
[321746861,1712495443091,-197.38903611,0.000219,2]
[321746863,1712495443100,-197.38903611,0.000219,2]
[321746864,1712495443110,-197.38903611,0.000219,2]
[321746865,1712495443119,-197.38903611,0.000219,2]
[321746866,1712495443128,-197.38903611,0.000219,2]
[321746867,1712495443137,-197.38903611,0.000219,2]
[321746868,1712495443146,-197.38903611,0.000219,2]
[321746869,1712495443155,-197.38903611,0.000219,2]
[321746870,1712495443166,-197.38903611,0.000219,2]
[321746871,1712495443176,-197.38903611,0.000219,2]
[321746872,1712495443186,-197.38903611,0.000219,2]
[321746873,1712495443196,-197.38903611,0.000219,2]
[321746874,1712495443205,-197.38903611,0.000219,2]
[321746875,1712495443217,-197.38903611,0.000219,2]
[321746876,1712495443226,-197.38903611,0.000219,2]
[321746877,1712495443236,-197.38903611,0.000219,2]
[321746878,1712495443247,-197.38903611,0.000219,2]
[321746879,1712495443256,-197.38903611,0.000219,2]
[321746880,1712495443265,-152.40398909,0.000219,2]
[321746881,1712495443275,-197.38903611,0.000219,2]
[321746882,1712495443284,-197.38903611,0.000219,2]
[321746883,1712495443294,-197.38903611,0.000219,2]
[321746884,1712495443305,-197.38903611,0.000219,2]
[321746885,1712495443314,-197.38903611,0.000219,2]
[321746886,1712495443324,-197.38903611,0.000219,2]
[321746887,1712495443334,-197.38903611,0.000219,2]
[321746888,1712495443343,-197.38903611,0.000219,2]
[321746889,1712495443352,-197.38903611,0.000219,2]
[321746890,1712495443361,-197.38903611,0.000219,2]
[321746891,1712495443372,-197.38903611,0.000219,2]
[321746892,1712495443382,-197.38903611,0.000219,2]
[321746893,1712495443391,-197.38903611,0.000219,2]
[321746894,1712495443400,-197.38903611,0.000219,2]
[321746895,1712495443410,-197.38903611,0.000219,2]
[321746896,1712495443419,-197.38903611,0.000219,2]
[321746897,1712495443429,-197.38903611,0.000219,2]
[321746898,1712495443439,-197.38903611,0.000219,2]
[321746899,1712495443448,-197.38903611,0.000219,2]
[321746900,1712495443458,-197.38903611,0.000219,2]
[321746901,1712495443467,-197.38903611,0.000219,2]
[321746902,1712495443477,-197.38903611,0.000219,2]
[321746903,1712495443487,-197.38903611,0.000219,2]
[321746904,1712495443497,-197.38903611,0.000219,2]
[321746905,1712495443506,-197.38903611,0.000219,2]
[321746906,1712495443515,-197.38903611,0.000219,2]
[321746907,1712495443525,-197.38903611,0.000219,2]
[321746908,1712495443537,-197.38903611,0.000219,2]
[321746909,1712495443548,-197.38903611,0.000219,2]
[321746910,1712495443558,-197.38903611,0.000219,2]
[321746911,1712495443568,-197.38903611,0.000219,2]
[321746912,1712495443577,-197.38903611,0.000219,2]
[321746913,1712495443586,-197.38903611,0.000219,2]
[321746914,1712495443596,-197.38903611,0.000219,2]
[321746915,1712495443607,-197.38903611,0.000219,2]
[321746916,1712495443617,-250.0,0.00021918,2]
[321746917,1712495443629,-1500.0,0.00021918,2]
[321746918,1712495443639,-10285.43,0.00021918,2]
[321746919,1712495443648,-150.0,0.00021918,2]
[321746920,1712495443657,-167.35,0.0002194,2]
[321746921,1712495443667,-150.0,0.00021999,10]
[321746922,1712495443677,-1672645.88138713,0.00022,2]
[321746923,1712495443687,-640.50173907,0.00022,2]
[321746924,1712495443697,-272.97382694,0.00022,2]
[321746925,1712495443706,-274.705875,0.00022,2]
[321746926,1712495443717,-206.42915876,0.00022,2]
[321746927,1712495443726,-188.30290634,0.00022,2]
[321746928,1712495443736,-150.0,0.00022,2]
[321746929,1712495443745,-174.0,0.00022,2]
[321746930,1712495443755,-1312.0,0.00022125,2]
[321746931,1712495443765,-5705.0,0.00022125,2]
[321746932,1712495443774,-4792.0,0.00022125,2]
[321746933,1712495443783,-37530.0,0.00022125,2]
[321746934,1712495443793,-2458.0,0.00022125,2]
[321746935,1712495443802,-800.0,0.00022137,2]
[321746936,1712495443812,-151.93,0.00022148,2]
[321746937,1712495443821,-151.93,0.00022154,2]
[321746938,1712495443830,-151.93,0.0002216,2]
[321746939,1712495443839,-151.93,0.00022166,2]
[321746940,1712495443849,-151.93,0.00022172,2]
[321746941,1712495443858,-151.93,0.00022179,2]
[321746942,1712495443868,-151.93,0.00022185,2]
[321746943,1712495443879,-151.93,0.00022191,2]
[321746944,1712495443889,-254.876963,0.00022192,2]
[321746945,1712495443899,-151.93,0.00022197,2]
[321746946,1712495443910,-500.0,0.000222,2]
[321746947,1712495443919,-200.0,0.000222,2]
[321746948,1712495443928,-200.0,0.000222,2]
[321746949,1712495443938,-200.0,0.000222,2]
[321746950,1712495443947,-500.0,0.000222,2]
[321746951,1712495443956,-200.0,0.000222,2]
[321746952,1712495443965,-792.0,0.000222,2]
[321746953,1712495443975,-500.0,0.000222,2]
[321746954,1712495443984,-200.0,0.000222,2]
[321746955,1712495443994,-200.0,0.000222,2]
[321746956,1712495444003,-770.0,0.000222,2]
[321746957,1712495444012,-200.0,0.000222,2]
[321746958,1712495444156,-200.0,0.000222,2]
[321746959,1712495444171,-200.0,0.000222,2]
[321746960,1712495444180,-200.0,0.000222,2]
[321746961,1712495444190,-200.0,0.000222,2]
[321746962,1712495444199,-200.0,0.000222,2]
[321746963,1712495444208,-200.0,0.000222,2]
[321746964,1712495444217,-369.0,0.000222,2]
[321746965,1712495444227,-151.93,0.00022203,2]
[321746966,1712495444237,-151.93,0.00022209,2]
[321746967,1712495444247,-151.93,0.00022216,2]
[321746968,1712495444257,-151.93,0.00022222,2]
[321746969,1712495444267,-151.93,0.00022228,2]
[321746970,1712495444276,-151.93,0.00022234,2]
[321746971,1712495444286,-151.93,0.0002224,2]
[321746972,1712495444296,-151.93,0.00022246,2]
[321746973,1712495444306,-151.93,0.00022253,2]
[321746974,1712495444315,-151.93,0.00022259,2]
[321746975,1712495444325,-385.11,0.00022271,2]
[321746976,1712495444334,-224.749,0.00022345,2]
[321746977,1712495444344,-217.424,0.00022345,2]
[321746978,1712495444353,-24747.409651,0.000225,2]
[321746979,1712495444362,-24747.409651,0.000225,2]
[321746980,1712495444373,-24747.409651,0.000225,2]
[321746981,1712495444382,-24747.409651,0.000225,2]
[321746982,1712495444392,-24747.409651,0.000225,2]
[321746983,1712495444401,-24747.409651,0.000225,2]
[321746984,1712495444410,-24747.409651,0.000225,2]
[321746985,1712495444419,-24747.409651,0.000225,2]
[321746986,1712495444429,-24747.409651,0.000225,2]
[321746987,1712495444438,-24747.409651,0.000225,2]
[321746988,1712495444448,-150.0,0.000225,2]
[321746989,1712495444457,-167.15,0.00022516,2]
[321746990,1712495444467,-855.0,0.00022603,2]
[321746991,1712495444476,-547.0,0.00022603,2]
[321746992,1712495444485,-525.0,0.00022603,2]
[321746993,1712495444494,-169.63,0.00022624,2]
[321746994,1712495444504,-500.0,0.00022645,2]
[321746995,1712495444514,-306.94010752,0.00023,2]
[321746996,1712495444523,-238.84928929,0.00023,2]
[321746997,1712495444532,-155.0,0.00023,2]
[321746998,1712495444542,-150.0,0.00023,2]
[321746999,1712495444550,-155.0,0.00023,2]
[321747000,1712495444559,-385.11,0.00023007,2]
[321747001,1712495444569,-174.0,0.00023014,2]
[321747002,1712495444578,-254.876963,0.00023014,2]
[321747003,1712495444587,-167.53419268,0.00023099,2]
[321747004,1712495444597,-100000.0,0.00023119,2]
[321747005,1712495444606,-509.0,0.00023124,2]
[321747006,1712495444615,-385.9003421,0.00023228,2]
[321747007,1712495444625,-155.7080888,0.00023232,2]
[321747008,1712495444634,-150.61093648,0.00023257,2]
[321747009,1712495444643,-153.40889554,0.00023259,2]
[321747010,1712495444652,-385.9003421,0.00023261,2]
[321747011,1712495444661,-150.61093648,0.00023295,2]
[321747012,1712495444670,-157.24945075,0.000233,2]
[321747013,1712495444679,-385.9003421,0.00023304,2]
[321747014,1712495444688,-150.61093648,0.00023327,2]
[321747015,1712495444697,-1034.76380601,0.000234,3]
[321747016,1712495444706,-151.11770667,0.00023405,2]
[321747017,1712495444716,-168.82531247,0.00023442,2]
[321747018,1712495444728,-1000.0,0.0002346,2]
[321747019,1712495444738,-158.87544862,0.00023471,2]
[321747020,1712495444747,-151.33317952,0.00023489,2]
[321747021,1712495444757,-5000.0,0.000235,2]
[321747022,1712495444766,-150.0,0.000235,2]
[321747023,1712495444775,-264.76980586,0.00023505,2]
[321747024,1712495444785,-153.40889554,0.00023507,2]
[321747025,1712495444796,-153.40889554,0.00023542,2]
[321747026,1712495444806,-156.99822526,0.00023585,2]
[321747027,1712495444815,-328.83552218,0.00023596,2]
[321747028,1712495444825,-2361.55,0.000236,2]
[321747029,1712495444836,-1840.06,0.000236,2]
[321747030,1712495444845,-150.61093648,0.00023608,2]
[321747031,1712495444855,-168.82531247,0.00023611,2]
[321747032,1712495444864,-385.9003421,0.00023612,2]
[321747033,1712495444874,-167.35,0.00023612,2]
[321747034,1712495444884,-855.0,0.0002363,2]
[321747035,1712495444893,-547.0,0.0002363,2]
[321747036,1712495444903,-525.0,0.0002363,2]
[321747037,1712495444913,-514.72,0.00023659,2]
[321747038,1712495444924,-328.83552218,0.00023662,2]
[321747039,1712495444933,-219.55121766,0.00023677,2]
[321747040,1712495444943,-166.7821729,0.00023723,2]
[321747041,1712495444952,-385.11,0.00023742,2]
[321747042,1712495444961,-168.7429276,0.00023768,2]
[321747043,1712495444972,-157.30725251,0.000238,2]
[321747044,1712495444981,-168.7429276,0.00023802,2]
[321747045,1712495444990,-254.876963,0.00023836,2]
[321747046,1712495445000,-293.0,0.00023836,2]
[321747047,1712495445009,-168.82531247,0.00023845,2]
[321747048,1712495445018,-168.7429276,0.00023867,2]
[321747049,1712495445027,-184.3655423,0.00023879,2]
[321747050,1712495445037,-264.76980586,0.00023918,2]
[321747051,1712495445048,-151.11770667,0.00023934,2]
[321747052,1712495445058,-151.11770667,0.00023972,2]
[321747053,1712495445067,-430.99866383,0.00024,2]
[321747054,1712495445077,-150.0,0.00024,2]
[321747055,1712495445086,-153.40889554,0.00024021,2]
[321747056,1712495445095,-168.82531247,0.00024022,2]
[321747057,1712495445105,-328.83552218,0.00024026,2]
[321747058,1712495445115,-155.0,0.0002415,2]
[321747059,1712495445125,-151.11770667,0.00024185,2]
[321747060,1712495445134,-151.11770667,0.00024204,2]
[321747061,1712495445143,-168.7429276,0.00024253,2]
[321747062,1712495445152,-7708.02,0.00024265,2]
[321747063,1712495445166,-158.87544862,0.00024275,2]
[321747064,1712495445175,-158.34567612,0.00024302,2]
[321747065,1712495445186,-3502.25,0.00024329,15]
[321747066,1712495445195,-168.7429276,0.00024358,2]
[321747067,1712495445205,-328.83552218,0.00024412,2]
[321747068,1712495445214,-385.11,0.00024478,2]
[321747069,1712495445224,-280.85252927,0.000245,2]
[321747070,1712495445233,-150.0,0.000245,2]
[321747071,1712495445243,-169.63,0.00024509,2]
[321747072,1712495445253,-156.99822526,0.0002451,2]
[321747073,1712495445262,-264.76980586,0.00024525,2]
[321747074,1712495445272,-151.11770667,0.00024541,2]
[321747075,1712495445281,-176.41979809,0.0002455,2]
[321747076,1712495445290,-10479.151,0.00024625,2]
[321747077,1712495445300,-158.87544862,0.00024637,2]
[321747078,1712495445309,-254.876963,0.00024658,2]
[321747079,1712495445318,-151.0,0.00024658,7]
[321747080,1712495445328,-151.0,0.00024658,7]
[321747081,1712495445337,-151.0,0.00024658,7]
[321747082,1712495445346,-151.0,0.00024658,7]
[321747083,1712495445355,-177.18,0.00024658,4]
[321747084,1712495445365,-151.0,0.00024658,7]